fUST/lending_fUST_20250826
["ID","MTS","AMOUNT","RATE_DAILY","PERIOD"]
[381359780,1756151666251,-159.62,0.00028965,15]
[381359781,1756151666293,-159.62,0.00029065,15]
[381359782,1756151666492,-6976.51740234,0.00029165,2]
[381359783,1756151666514,-10000.01,0.00029165,2]
[381359784,1756151666545,-10000.01,0.00029165,2]
[381359785,1756151666718,-10000.01,0.00029165,2]
[381359786,1756151666900,-10000.01,0.00029165,2]
[381359787,1756151667120,-3023.44259766,0.00029165,2]
[381359788,1756151667150,-159.62,0.00029165,15]
[381359789,1756151670334,199.0,0.00028285,30]
[381359790,1756151672449,3434.88480468,0.00029165,2]
[381359791,1756151672475,1565.11519532,0.00029165,2]
[381359792,1756151673498,-159.62,0.00029265,15]
[381359793,1756151673535,-159.62,0.00029365,15]
[381359794,1756151673818,-159.62,0.00029465,15]
[381359795,1756151673857,-159.62,0.00029565,15]
[381359796,1756151673892,-159.62,0.00029665,15]
[381359797,1756151673925,-159.62,0.00029765,15]
[381359798,1756151673963,-159.62,0.00029865,15]
[381359799,1756151673999,-159.62,0.00029965,15]
[381359800,1756151674038,-159.62,0.00030065,15]
[381359801,1756151674080,-159.7243952,0.00030165,15]
[381359802,1756151674118,-1000.0,0.00030216,7]
[381359803,1756151674159,-331.82587734,0.00030259,13]
[381359804,1756151674191,-241.0,0.00030297,2]
[381359805,1756151674228,-420.0,0.0003035,2]
[381359806,1756151674259,-1000.0,0.0003041,7]
[381359807,1756151674480,-1770.69170487,0.00030532,2]
[381359808,1756151674513,-1000.0,0.00030603,7]
[381359809,1756151674543,-500.0,0.00030632,2]
[381359810,1756151687683,3458.62659026,0.00030632,2]
[381359811,1756151687706,1541.37340974,0.00030632,2]
[381359812,1756151693530,-160.0,0.00030683,2]
[381359813,1756151693557,-1000.0,0.00030797,7]
[381359814,1756151693584,-500.0,0.00030906,2]
[381359815,1756151693613,-1158.39,0.0003097,10]
[381359816,1756151693640,-500.0,0.00030973,5]
[381359817,1756151693669,-500.0,0.00030979,2]
[381359818,1756151693696,-500.0,0.00030979,2]
[381359819,1756151693725,-500.0,0.00030979,2]
[381359820,1756151693883,-500.0,0.00030979,2]
[381359821,1756151693910,-500.0,0.00030979,2]
[381359822,1756151693937,-500.0,0.00030979,2]
[381359823,1756151693964,-500.0,0.00030979,2]
[381359824,1756151693990,-500.0,0.00030979,2]
[381359825,1756151694018,-500.0,0.00030979,2]
[381359826,1756151694045,-500.0,0.00030979,2]
[381359827,1756151694072,-500.0,0.00030979,2]
[381359828,1756151694103,-500.0,0.00030979,2]
[381359829,1756151694129,-500.0,0.00030979,2]
[381359830,1756151694346,-500.0,0.00030979,2]
[381359831,1756151694374,-539.961985,0.00030979,2]
[381359832,1756151694401,-415.36850841,0.00030979,2]
[381359833,1756151694428,-500.0,0.00030979,2]
[381359834,1756151694455,-500.0,0.00030979,2]
[381359835,1756151694689,-500.0,0.00030979,2]
[381359836,1756151694718,-387.68965033,0.00030979,2]
[381359837,1756151694746,-500.0,0.00030979,2]
[381359838,1756151694774,-500.0,0.00030979,2]
[381359839,1756151694802,-500.0,0.00030979,2]
[381359840,1756151694996,-500.0,0.00030979,2]
[381359841,1756151695024,-500.0,0.00030979,2]
[381359842,1756151695052,-500.0,0.00030979,2]
[381359843,1756151695083,-451.75153589,0.00030979,2]
[381359844,1756151695111,-506.39974111,0.00030979,2]
[381359845,1756151695140,-500.0,0.00030979,2]
[381359846,1756151695169,-500.0,0.00030979,2]
[381359847,1756151695196,-373.89799678,0.00030979,2]
[381359848,1756151695225,-500.0,0.00030979,2]
[381359849,1756151695253,-500.0,0.00030979,2]
[381359850,1756151695423,-500.0,0.00030979,2]
[381359851,1756151695452,-500.0,0.00030979,2]
[381359852,1756151695482,-500.0,0.00030979,2]
[381359853,1756151695509,-500.0,0.00030979,2]
[381359854,1756151695536,-491.30873414,0.00030979,2]
[381359855,1756151695564,-500.0,0.00030979,2]
[381359856,1756151695592,-262.68658402,0.00030979,2]
[381359857,1756151695621,-485.48549839,0.00030979,2]
[381359858,1756151695650,-500.0,0.00030979,2]
[381359859,1756151695679,-500.0,0.00030979,2]
[381359860,1756151695708,-21.0483669,0.00030979,2]
[381359861,1756151695912,-478.9516331,0.00030979,2]
[381359862,1756151695940,-500.0,0.00030979,2]
[381359863,1756151695969,-500.0,0.00030979,2]
[381359864,1756151695995,-581.44414032,0.00030979,2]
[381359865,1756151696024,-500.0,0.00030979,2]
[381359866,1756151696051,-500.0,0.00030979,2]
[381359867,1756151696078,-431.68844088,0.00030979,2]
[381359868,1756151696108,-500.0,0.00030979,2]
[381359869,1756151697311,627.46852134,0.00027,7]
[381359870,1756151697448,199.0,0.0003087,10]
[381359871,1756151700952,-965.32,0.0003098,10]
[381359872,1756151701412,-9607.80404614,0.0003098,2]
[381359873,1756151701644,-10000.01,0.0003098,2]
[381359874,1756151701857,-2640.60621894,0.0003098,2]
[381359875,1756151701880,-4718.79756212,0.0003098,2]
[381359876,1756151702090,-1612.6119938,0.0003098,2]
[381359877,1756151702271,400.0,0.00030979,2]
[381359878,1756151702954,400.0,0.00030979,2]
[381359879,1756151702991,400.0,0.00030979,2]
[381359880,1756151703245,5574.7860124,0.00027,7]
[381359881,1756151703271,10000.01,0.00027,7]
[381359882,1756151703294,3024.3883318,0.00027,7]
[381359883,1756151703416,400.0,0.00030979,2]
[381359884,1756151703578,5000.0,0.00030979,2]
[381359885,1756151703716,1575.6216682,0.00030979,2]
[381359886,1756151703745,24.3783318,0.00030979,2]
[381359887,1756151716954,203.01623307,0.0003089,2]
[381359888,1756151718537,-614.50326494,0.00030989,2]
[381359889,1756151719134,-1781.71419278,0.0003099,2]
[381359890,1756151719190,-10000.01,0.0003099,2]
[381359891,1756151719436,-10000.01,0.0003099,2]
[381359892,1756151719608,-10000.01,0.0003099,2]
[381359893,1756151719811,500.0,0.00030979,2]
[381359894,1756151719838,221.25652601,0.00030979,2]
[381359895,1756151719870,240.72195918,0.00030979,2]
[381359896,1756151719934,-259.27804082,0.00030979,2]
[381359897,1756151719964,-500.0,0.00030979,2]
[381359898,1756151719997,-500.0,0.00030979,2]
[381359899,1756151720026,-250.0,0.00030979,2]
[381359900,1756151720055,-517.45247674,0.0003099,2]
[381359901,1756151720090,-1000.0,0.0003099,7]
[381359902,1756151720127,500.0,0.00030979,2]
[381359903,1756151720172,500.0,0.00030979,2]
[381359904,1756151720203,500.0,0.00030979,2]
[381359905,1756151720271,500.0,0.00030979,2]
[381359906,1756151720327,500.0,0.00030979,2]
[381359907,1756151720389,500.0,0.00030979,2]
[381359908,1756151720438,500.0,0.00030979,2]
[381359909,1756151720505,446.54896488,0.00030979,2]
[381359910,1756151743598,-2117.18946124,0.00030824,26]
[381359911,1756151743626,-258.26,0.00030979,30]
[381359912,1756151743656,-53.45103512,0.00030979,2]
[381359913,1756151743686,-500.0,0.00030979,2]
[381359914,1756151743715,-525.0,0.00030979,2]
[381359915,1756151743957,-500.0,0.00030979,2]
[381359916,1756151744092,-5000.0,0.00030979,2]
[381359917,1756151744160,3239.01289283,0.00025147,2]
[381359918,1756151744197,-241.0,0.0003099,120]
[381359919,1756151744224,-339.15,0.00031,7]
[381359920,1756151744255,-157.0,0.00031,120]
[381359921,1756151744284,-2000.0,0.00031016,2]
[381359922,1756151744310,-500.0,0.00031073,5]
[381359923,1756151744338,-240.08,0.00031077,120]
[381359924,1756151744365,-157.99,0.00031077,120]
[381359925,1756151744392,-304.05764319,0.00031132,26]
[381359926,1756151744420,-599.65056863,0.00031172,2]
[381359927,1756151745270,-500.0,0.00030979,2]
[381359928,1756151745309,-500.0,0.00030979,2]
[381359929,1756151745347,-427.86120383,0.00030979,2]
[381359930,1756151745385,-500.0,0.00030979,2]
[381359931,1756151745422,-922.15357636,0.00031172,2]
[381359932,1756151745460,-158.0,0.00031177,120]
[381359933,1756151745497,-676.69551253,0.00031192,5]
[381359934,1756151745538,-172.0,0.00031209,120]
[381359935,1756151745575,-260.0,0.00031231,2]
[381359936,1756151746558,-6681.98003583,0.00031251,2]
[381359937,1756151746575,-10000.01,0.00031251,2]
[381359938,1756151746603,-10000.01,0.00031251,2]
[381359939,1756151746628,-285.21779137,0.00031251,2]
[381359940,1756151746637,-1612.6119938,0.00031251,2]
[381359941,1756151749472,5000.0,0.00030632,2]
[381359942,1756151753662,-199.0,0.00030879,30]
[381359943,1756151753692,-199.0,0.0003089,120]
[381359944,1756151753793,-4204.01,0.00030984,2]
[381359945,1756151753825,-10000.01,0.00030984,2]
[381359946,1756151754052,-10000.01,0.00030984,2]
[381359947,1756151754240,-10000.01,0.00030984,2]
[381359948,1756151754513,-2828.8688429,0.00030984,2]
[381359949,1756151754537,-4342.2723142,0.00030984,2]
[381359950,1756151757436,5000.0,0.00030632,2]
[381359953,1756151765775,5000.0,0.00030984,2]
[381359954,1756151766508,0.01,0.00030979,2]
[381359955,1756151766532,499.99,0.00030979,2]
[381359956,1756151766562,500.0,0.00030979,2]
[381359957,1756151766587,500.0,0.00030979,2]
[381359958,1756151766612,500.0,0.00030979,2]
[381359959,1756151766641,554.91057031,0.00030979,2]
[381359960,1756151766666,500.0,0.00030979,2]
[381359961,1756151766692,500.0,0.00030979,2]
[381359962,1756151766773,500.0,0.00030979,2]
[381359963,1756151766825,500.0,0.00030979,2]
[381359964,1756151766881,500.0,0.00030979,2]
[381359965,1756151766939,500.0,0.00030979,2]
[381359966,1756151770396,500.0,0.00030979,2]
[381359967,1756151770469,500.0,0.00030979,2]
[381359968,1756151770498,250.0,0.00030979,2]
[381359969,1756151770543,500.0,0.00030979,2]
[381359970,1756151770584,500.0,0.00030979,2]
[381359971,1756151770640,548.24846411,0.00030979,2]
[381359972,1756151772075,500.0,0.00030979,2]
[381359973,1756151772131,500.0,0.00030979,2]
[381359974,1756151772183,169.86641146,0.00030979,2]
[381359975,1756151773338,476.99455412,0.00030984,2]
[381359976,1756151773364,4523.00544588,0.00030984,2]
[381359977,1756151773662,-400.0,0.00031259,2]
[381359978,1756151773693,-512.89978455,0.0003126,2]
[381359979,1756151773724,-494.97964608,0.0003126,2]
[381359980,1756151773755,-512.89978455,0.0003126,2]
[381359981,1756151773790,-512.89978455,0.0003126,2]
[381359982,1756151773821,-512.89978455,0.0003126,2]
[381359983,1756151773854,-512.89978455,0.0003126,2]
[381359984,1756151773884,-512.89978455,0.0003126,2]
[381359985,1756151773914,-512.89978455,0.0003126,2]
[381359986,1756151773944,-512.89978455,0.0003126,2]
[381359987,1756151774202,-512.89978455,0.0003126,2]
[381359988,1756151774232,-512.89978455,0.0003126,2]
[381359989,1756151774262,-512.89978455,0.0003126,2]
[381359990,1756151774294,-512.89978455,0.0003126,2]
[381359991,1756151774324,-512.89978455,0.0003126,2]
[381359992,1756151774353,-512.89978455,0.0003126,2]
[381359993,1756151774383,-512.89978455,0.0003126,2]
[381359994,1756151774413,-512.89978455,0.0003126,2]
[381359995,1756151774442,-512.89978455,0.0003126,2]
[381359996,1756151774472,-254.91409355,0.0003126,2]
[381359997,1756151775681,-5779.01343364,0.0003126,2]
[381359998,1756151775700,-10000.01,0.0003126,2]
[381359999,1756151776094,-10000.01,0.0003126,2]
[381360000,1756151778071,500.0,0.00030979,2]
[381360001,1756151781989,4977.00455412,0.00030984,2]
[381360002,1756151787093,219.62369743,0.00030065,7]
[381360003,1756151789866,5000.0,0.00029165,2]
[381360004,1756151803666,-780.37630257,0.00030065,7]
[381360005,1756151803694,-172.17,0.00030632,30]
[381360006,1756151803721,-1584.14,0.00030969,2]
[381360007,1756151803748,-1584.14,0.00030969,2]
[381360008,1756151803775,-174.21739486,0.00030969,2]
[381360009,1756151803959,-1409.92260514,0.00030969,2]
[381360010,1756151803987,-1584.14,0.00030969,2]
[381360011,1756151804016,-1584.14,0.00030969,2]
[381360012,1756151804046,-343.60478972,0.00030979,2]
[381360013,1756151804214,-156.39521028,0.00030979,2]
[381360014,1756151804242,-500.0,0.00030979,2]
[381360015,1756151804271,-500.0,0.00030979,2]
[381360016,1756151804300,-548.24846411,0.00030979,2]
[381360017,1756151804331,-169.86641146,0.00030979,2]
[381360018,1756151804358,-160.0,0.00030979,2]
[381360019,1756151804386,-1584.14,0.0003098,2]
[381360020,1756151804416,-22.99544588,0.00030984,2]
[381360021,1756151804445,-1132.57893654,0.00030989,2]
[381360022,1756151804542,-451.56106346,0.00030989,2]
[381360023,1756151804571,-1584.14,0.00030989,2]
[381360024,1756151804599,-269.9335356,0.0003125,15]
[381360025,1756151804625,-1584.14,0.0003125,2]
[381360026,1756151804981,500.0,0.00030979,2]
[381360027,1756151805010,535.34867956,0.00030979,2]
[381360028,1756151805035,500.0,0.00030979,2]
[381360029,1756151805062,215.27128784,0.00030979,2]
[381360030,1756151805093,175.3020222,0.00030979,2]
[381360031,1756151805122,294.53881228,0.00030979,2]
[381360032,1756151805145,205.46118772,0.00030979,2]
[381360033,1756151805174,500.0,0.00030979,2]
[381360034,1756151805204,244.36213114,0.00030979,2]
[381360035,1756151805234,457.22060381,0.00030979,2]
[381360036,1756151805265,484.40021588,0.00030979,2]
[381360037,1756151807318,500.0,0.00030979,2]
[381360038,1756151807345,500.0,0.00030979,2]
[381360039,1756151807371,500.0,0.00030979,2]
[381360040,1756151810623,2250.4322209,0.0002803,2]
[381360041,1756151811900,4358.13364055,0.0003125,2]
[381360042,1756151811924,641.86635945,0.0003125,2]
[381360043,1756151812865,500.0,0.00030979,2]
[381360044,1756151813234,500.0,0.00030979,2]
[381360045,1756151813331,500.0,0.00030979,2]
[381360046,1756151819925,287.06260194,0.0003116,2]
[381360047,1756151820432,3526.37934083,0.0003125,2]
[381360048,1756151821181,172.61032893,0.0003116,2]
[381360050,1756151823758,-400.0,0.00031259,2]
[381360051,1756151824348,-2207.54699046,0.0003126,2]
[381360052,1756151824455,-10000.01,0.0003126,2]
[381360053,1756151824670,-10000.01,0.0003126,2]
[381360054,1756151824867,-2013.3995759,0.0003126,2]
[381360055,1756151824898,-1584.14,0.0003126,2]
[381360056,1756151825128,1600.0,0.00031259,3]
[381360057,1756151828642,1204.9308482,0.0003126,2]
[381360058,1756151828664,3795.0691518,0.0003126,2]
[381360059,1756151833787,-257.985691,0.0003126,2]
[381360060,1756151833817,-512.89978455,0.0003126,2]
[381360061,1756151833848,-512.89978455,0.0003126,2]
[381360062,1756151833878,-512.89978455,0.0003126,2]
[381360063,1756151833907,-527.55406413,0.0003126,2]
[381360064,1756151833936,-527.55406413,0.0003126,2]
[381360065,1756151833964,-527.55406413,0.0003126,2]
[381360066,1756151833993,-527.55406413,0.0003126,2]
[381360067,1756151834023,-527.55406413,0.0003126,2]
[381360068,1756151834053,-527.55406413,0.0003126,2]
[381360069,1756151834252,-527.55406413,0.0003126,2]
[381360070,1756151834280,-1584.14,0.00031262,2]
[381360071,1756151834309,-1584.14,0.00031262,2]
[381360072,1756151837801,2608.34187174,0.00028,2]
[381360073,1756151837824,548.86846596,0.00028,2]
[381360074,1756151839206,1432.67527529,0.000199,2]
[381360075,1756151839251,1432.67527526,0.00021627,2]
[381360076,1756151839308,1432.67527526,0.00023353,2]
[381360077,1756151839456,1432.67527526,0.0002508,2]
[381360078,1756151839520,1432.67527526,0.00026806,6]
[381360079,1756151839589,1432.67527526,0.00028533,10]
[381360080,1756151839720,855.08988245,0.00030259,13]
[381360081,1756151839749,577.58539281,0.00030259,13]
[381360082,1756151844381,5000.0,0.00031263,2]
[381360083,1756151846551,219.62369743,0.00030632,7]
[381360084,1756151859813,4202.80090976,0.00031263,2]
[381360085,1756151859836,797.19909024,0.00031263,2]
[381360086,1756151863037,2085.56932035,0.00031172,2]
[381360087,1756151863644,-7984.90085881,0.00031263,2]
[381360088,1756151864004,-10000.01,0.00031263,2]
[381360089,1756151864240,-1017.70303161,0.00031263,2]
[381360090,1756151864263,-7964.60393678,0.00031263,2]
[381360091,1756151868620,-1612.6119938,0.00031263,2]
[381360092,1756151868651,-662.30315788,0.00031263,2]
[381360093,1756151868682,-1584.14,0.00031271,2]
[381360094,1756151868800,-2281.89969664,0.00031272,2]
[381360095,1756151868920,-1150.28660636,0.00031272,2]
[381360096,1756151868955,-2245.9039807,0.00031272,2]
[381360097,1756151868989,-1584.14,0.00031272,2]
[381360098,1756151869094,39.34882588,0.00030979,2]
[381360099,1756151869122,460.65117412,0.00030979,2]
[381360100,1756151871142,331.15157894,0.00031272,2]
[381360101,1756151871181,331.15157894,0.00031272,2]
[381360102,1756151872354,500.0,0.00031262,2]
[381360103,1756151872405,591.73043426,0.00031262,2]
[381360104,1756151877092,407.22699692,0.00030979,2]
[381360105,1756151878853,-500.0,0.00031273,5]
[381360106,1756151878882,-500.0,0.00031273,5]
[381360107,1756151878911,-501.0583439,0.00031273,5]
[381360108,1756151878941,-500.0,0.00031273,2]
[381360109,1756151878970,-500.0,0.00031273,5]
[381360110,1756151878998,-500.0,0.00031273,5]
[381360111,1756151879028,-509.75446269,0.00031273,5]
[381360112,1756151879055,-500.0,0.00031273,5]
[381360113,1756151879085,-500.0,0.00031273,5]
[381360114,1756151879119,-478.38438682,0.00031273,5]
[381360115,1756151879560,-21.61561318,0.00031273,5]
[381360116,1756151879589,-500.0,0.00031273,5]
[381360117,1756151879622,-389.23249397,0.00031273,5]
[381360118,1756151879651,-500.0,0.00031273,5]
[381360119,1756151879681,-2701.34,0.000313,7]
[381360120,1756151879710,-164.038871,0.00031311,2]
[381360121,1756151879839,-3500.0,0.0003136,5]
[381360122,1756151879872,-424.18,0.0003148,3]
[381360123,1756151879903,-1000.0,0.00031521,5]
[381360124,1756151879975,-1000.0,0.00031521,5]
[381360125,1756151880005,-1000.0,0.00031521,5]
[381360126,1756151880034,-1000.0,0.00031521,5]
[381360127,1756151882219,451.89770887,0.00025205,30]
[381360128,1756151888860,-1521.80414499,0.00031544,2]
[381360129,1756151888889,-1584.14,0.00031579,2]
[381360130,1756151888974,-2336.22400115,0.00031598,2]
[381360131,1756151889035,-2951.07803836,0.00031598,2]
[381360132,1756151889062,-4097.85392328,0.00031598,2]
[381360133,1756151889307,-1611.652954,0.000316,7]
[381360134,1756151889337,-340.03,0.000316,7]
[381360135,1756151892981,1309.4238277,0.00030114,2]
[381360136,1756151898907,-5000.0,0.000316,120]
[381360137,1756151899113,-1584.14,0.00031601,2]
[381360138,1756151899152,-1584.14,0.00031601,2]
[381360139,1756151899185,-1584.14,0.00031601,2]
[381360140,1756151899329,-500.0,0.00031602,20]
[381360141,1756151899360,-376.30788339,0.00031602,7]
[381360142,1756151899394,-160.0,0.00031602,7]
[381360143,1756151899424,-844.86965257,0.00031602,7]
[381360144,1756151899453,-151.0,0.00031605,7]
[381360145,1756151899483,-151.0,0.00031605,7]
[381360146,1756151899511,-151.0,0.00031605,7]
[381360147,1756151899541,-331.65492808,0.0003161,60]
[381360148,1756151899859,-441.53543859,0.00031601,2]
[381360149,1756151899870,-3412.56580563,0.0003161,60]
[381360150,1756151908910,-232.4766599,0.00031602,7]
[381360151,1756151908940,-1255.77926629,0.0003161,60]
[381360152,1756151912620,199.0,0.0003151,60]
[381360153,1756151918742,5000.0,0.0003161,2]
[381360154,1756151925873,1824.49814762,0.00031477,2]
[381360155,1756151925900,10000.01,0.00031477,2]
[381360156,1756151925924,1693.89998048,0.00031477,2]
[381360157,1756151935238,5000.0,0.0003161,2]
[381360158,1756151939608,150.0,0.00029322,120]
[381360159,1756151943044,400.0,0.00031609,2]
[381360160,1756151947539,165.0,8.7e-07,2]
[381360161,1756151948575,165.0,8.7e-07,2]
[381360162,1756151949823,165.0,8.7e-07,2]
[381360163,1756151950525,179.8215774,0.00030114,2]
[381360164,1756151950649,165.0,8.7e-07,2]
[381360165,1756151951304,1916.28844212,0.0003161,2]
[381360166,1756151951327,3083.71155788,0.0003161,2]
[381360167,1756151951705,165.0,8.7e-07,2]
[381360168,1756151952984,165.0,8.7e-07,2]
[381360169,1756151964317,207.16850646,0.0003151,2]
[381360170,1756151967834,5000.0,0.0003161,2]
[381360171,1756151983738,1379.12993566,0.0003161,2]
[381360172,1756151983767,3620.87006434,0.0003161,2]
[381360173,1756151993782,846.35830607,0.00031578,2]
[381360174,1756151999134,5000.0,0.0003161,2]
[381360175,1756152002257,400.0,0.00031609,2]
[381360176,1756152002947,132.78162959,0.00031609,3]
[381360177,1756152002973,267.21837041,0.00031609,3]
[381360178,1756152003001,400.0,0.00031609,3]
[381360179,1756152003030,400.0,0.00031609,3]
[381360180,1756152003072,400.0,0.00031609,3]
[381360181,1756152003242,500.0,0.00025205,2]
[381360182,1756152004196,500.0,0.00025205,2]
[381360183,1756152005163,376.00613441,0.00025205,2]
[381360184,1756152006535,1600.0,0.00031609,3]
[381360185,1756152013423,1587.87218466,0.0003161,7]
[381360186,1756152014272,175.23610583,0.00031609,2]
[381360187,1756152014581,3793.67720469,0.0003161,2]
[381360188,1756152014606,1206.32279531,0.0003161,2]
[381360189,1756152015650,4787.2202643,0.000316,7]
[381360190,1756152016554,3548.11229113,0.00031521,7]
[381360191,1756152021291,151.0,0.00030065,7]
[381360192,1756152023009,151.0,0.00030838,7]
[381360193,1756152024561,151.0,0.0003161,7]
[381360194,1756152030360,5.35464926,0.0003161,2]
[381360195,1756152030383,4994.64535074,0.0003161,2]
[381360196,1756152033472,4787.2202643,0.00030114,2]
[381360197,1756152033501,3548.11229113,0.00030114,2]
[381360198,1756152033525,7838.74941094,0.00030114,2]
[381360199,1756152033547,5892.18937193,0.00030114,2]
[381360200,1756152071323,764.40104336,0.000199,2]
[381360201,1756152071351,1070.43707574,0.000199,2]
[381360202,1756152071463,1834.83811908,0.00021627,2]
[381360203,1756152071601,1834.83811908,0.00023353,2]
[381360204,1756152071728,1834.83811908,0.0002508,2]
[381360205,1756152071875,1834.83811908,0.00026806,6]
[381360206,1756152089400,-1834.83811908,0.00028533,10]
[381360207,1756152089427,-1000.0,0.00030065,7]
[381360208,1756152089460,-1834.83811908,0.00030259,13]
[381360209,1756152089527,-2355.8236559,0.00031477,2]
[381360210,1756152089556,-1014.2784265,0.0003158,2]
[381360211,1756152089585,-400.0,0.00031608,2]
[381360212,1756152089616,-500.0,0.00031609,2]
[381360213,1756152089646,-500.0,0.00031609,2]
[381360214,1756152089836,-500.0,0.00031609,2]
[381360215,1756152089865,-500.0,0.00031609,2]
[381360216,1756152089895,-371.29842021,0.00031609,2]
[381360217,1756152089922,-500.0,0.00031609,2]
[381360218,1756152089949,-500.0,0.00031609,2]
[381360219,1756152089976,-500.0,0.00031609,2]
[381360220,1756152090004,-500.0,0.00031609,2]
[381360221,1756152090036,-500.0,0.00031609,2]
[381360222,1756152090063,-437.61238891,0.00031609,2]
[381360223,1756152090092,-195.85406489,0.00031609,2]
[381360224,1756152090119,-368.24761247,0.00031609,2]
[381360225,1756152090298,-253.98502704,0.00031609,2]
[381360226,1756152090326,-220.76771929,0.0003161,2]
[381360227,1756152090353,-1000.0,0.0003161,7]
[381360228,1756152090382,-2050.50450734,0.0003161,60]
[381360229,1756152090820,-2949.49549266,0.0003161,60]
[381360230,1756152104178,182.423,0.0003161,29]
[381360231,1756152106446,3918.59601468,0.0003161,2]
[381360232,1756152106471,1081.40398532,0.0003161,2]
[381360233,1756152121726,5000.0,0.0003161,2]
[381360234,1756152122511,400.0,0.00031609,2]
[381360235,1756152124773,1600.0,0.00031609,3]
[381360236,1756152137518,1918.60601468,0.0003161,2]
[381360237,1756152197058,451.89770887,0.00025205,30]
[381360239,1756152271606,324.849133,0.00025778,2]
[381360240,1756152271936,324.849133,0.00026044,2]
[381360241,1756152275607,488.62447307,0.000199,2]
[381360242,1756152275633,521.37505152,0.000199,2]
[381360243,1756152276017,1009.99952458,0.00021627,2]
[381360244,1756152276123,1009.99952458,0.00023353,2]
[381360245,1756152276238,1009.99952458,0.0002508,2]
[381360246,1756152276366,1009.99952458,0.00026806,6]
[381360247,1756152334010,5000.0,0.0002711,2]
[381360248,1756152349904,438.63685016,0.0002711,2]
[381360249,1756152349933,4561.36314984,0.0002711,2]
[381360250,1756152365473,5000.0,0.0002711,2]
[381360251,1756152380797,438.64685016,0.0002711,2]
[381360252,1756152380821,4561.35314984,0.0002711,2]
[381360253,1756152389240,288.09008906,0.0002711,2]
[381360254,1756152398273,5000.0,0.0002711,2]
[381360255,1756152400162,-1009.99952458,0.00028533,10]
[381360256,1756152400190,-175.71805252,0.00029459,2]
[381360257,1756152400218,-292.5185859,0.00030065,7]
[381360258,1756152400251,-1009.99952458,0.00030259,13]
[381360259,1756152400281,-1000.0,0.00030371,30]
[381360260,1756152400314,-1423.53862484,0.00030611,2]
[381360261,1756152400541,-176.46137516,0.00030611,2]
[381360262,1756152400575,-500.0,0.00030612,2]
[381360263,1756152400605,-263.47760225,0.00030612,2]
[381360264,1756152400633,-632.99085924,0.00030612,2]
[381360265,1756152400660,-400.0,0.00030612,2]
[381360266,1756152400688,-400.0,0.00030612,2]
[381360267,1756152400717,-400.0,0.00030612,2]
[381360268,1756152400746,-400.0,0.00030612,2]
[381360269,1756152400888,-2107.3136553,0.00030613,120]
[381360270,1756152401383,-4214.6273106,0.00030613,120]
[381360271,1756152401480,-1570.7553788,0.00030613,120]
[381360272,1756152401508,-186.001471,0.00030613,2]
[381360273,1756152401535,-666.0,0.00030613,2]
[381360274,1756152401634,-0.01,0.00030613,2]
[381360275,1756152401985,-0.02,0.00030613,2]
[381360276,1756152402163,-0.04,0.00030613,2]
[381360277,1756152402683,-0.08,0.00030613,2]
[381360278,1756152414226,150.5667611,0.0002711,2]
[381360279,1756152430098,-4849.4332389,0.0002711,2]
[381360280,1756152430123,-199.0,0.00028433,10]
[381360281,1756152430145,-199.0,0.00030513,120]
[381360282,1756152430167,-400.0,0.00030612,2]
[381360283,1756152430187,-1600.0,0.00030612,2]